bitfinex-derivatives/quotes_SOLF0:USTF0_20250428
["timestamp","ask_amount","ask_price","bid_price","bid_amount"]
[1745832694608,7.23342566,151.63,151.59,7.23342566]
[1745832694810,7.23342566,151.65,151.59,7.23342566]
[1745832695116,13.82552566,151.65,151.59,7.23342566]
[1745832695615,7.23342566,151.65,151.61,7.23342566]
[1745832696112,7.23342566,151.65,151.63,6.5928]
[1745832696805,13.28262566,151.67,151.63,7.23342566]
[1745832697011,4.0389,151.67,151.63,7.23342566]
[1745832697313,11.27232566,151.67,151.63,7.23342566]
[1745832697514,4.0389,151.67,151.6,11.30186076]
[1745832697711,4.0389,151.67,151.61,23.4]
[1745832698312,10.6303,151.67,151.61,23.4]
[1745832698610,4.0389,151.67,151.61,23.4]
[1745832699408,29.9909,151.68,151.62,11.30186076]
[1745832699614,23.4,151.68,151.62,11.30186076]
[1745832699808,6.5907,151.69,151.65,6.5917]
[1745832700012,29.3193,151.71,151.64,11.30186076]
[1745832700214,35.9089,151.71,151.67,6.5907]
[1745832700417,29.3193,151.71,151.64,11.30186076]
[1745832700716,6.5898,151.7,151.66,6.5915]
[1745832700912,6.5898,151.7,151.64,11.30186076]
[1745832701215,29.3193,151.71,151.64,11.30186076]
[1745832701415,6.59,151.7,151.67,6.591]
[1745832701712,6.59,151.7,151.61,23.4]
[1745832701713,23.38,151.75,151.68,11.30186076]
[1745832702013,29.9678,151.75,151.71,6.5891]
[1745832702215,23.38,151.75,151.71,6.5891]
[1745832702414,6.5886,151.73,151.7,6.5896]
[1745832704016,23.38,151.75,151.69,6.59]
[1745832704218,25.336,151.75,151.69,6.59]
[1745832704619,6.5892,151.72,151.69,6.59]
[1745832704919,11.30186076,151.74,151.68,6.5906]
[1745832705216,6.5896,151.71,151.67,23.38]
[1745832705410,6.5896,151.71,151.68,6.5904]
[1745832705611,13.30506076,151.74,151.64,34.68186076]
[1745832705813,6.59,151.7,151.64,34.68186076]
[1745832706015,23.38,151.71,151.67,6.591]
[1745832706509,29.9696,151.71,151.68,6.5906]
[1745832708718,6.5899,151.7,151.68,6.5906]
[1745832708917,6.5899,151.7,151.67,6.5911]
[1745832709813,6.5899,151.7,151.68,6.5907]
[1745832710418,6.5899,151.7,151.67,6.5909]
[1745832710719,6.5899,151.7,151.64,34.68186076]
[1745832711018,6.5899,151.7,151.67,6.5909]
[1745832711321,6.5904,151.69,151.67,6.5909]
[1745832713027,25.3947,151.71,151.64,34.68186076]
[1745832713626,6.5898,151.7,151.67,6.5908]
[1745832716027,6.5905,151.69,151.66,6.5915]
[1745832717528,6.5905,151.69,151.67,6.591]
[1745832717729,2.0147,151.71,151.65,11.30186076]
[1745832717933,25.3947,151.71,151.65,11.30186076]
[1745832718134,25.3947,151.71,151.67,6.5907]
[1745832718434,25.3947,151.71,151.64,23.38]
[1745832718630,25.3947,151.71,151.66,6.5911]
[1745832718830,25.3947,151.71,151.64,23.38]
[1745832719033,6.59,151.7,151.64,23.38]
[1745832719231,6.59,151.7,151.67,6.5909]
[1745832719432,25.3947,151.71,151.64,23.38]
[1745832719731,6.5905,151.69,151.64,23.38]
[1745832720133,6.59,151.7,151.64,23.38]
[1745832720333,6.59,151.7,151.66,6.5913]
[1745832721034,6.5903,151.69,151.66,6.5913]
[1745832721440,6.5905,151.69,151.65,6.5918]
[1745832721828,25.3947,151.71,151.65,6.5918]
[1745832722027,25.3947,151.71,151.66,6.5915]
[1745832723138,25.3947,151.71,151.67,6.5911]
[1745832723339,6.5902,151.7,151.67,6.5911]
[1745832723737,25.3947,151.71,151.67,6.5911]
[1745832723940,6.5906,151.69,151.66,6.5914]
[1745832724237,25.3947,151.71,151.66,6.5914]
[1745832724438,6.5909,151.68,151.66,6.5914]
[1745832724640,25.3947,151.71,151.67,6.5911]
[1745832724836,25.3947,151.71,151.64,23.38]
[1745832725036,6.5902,151.7,151.64,23.38]
[1745832725340,25.3947,151.71,151.66,6.5912]
[1745832725635,6.5904,151.69,151.66,6.5912]
[1745832725836,6.5904,151.69,151.64,23.38]
[1745832726434,6.5904,151.69,151.66,6.5912]
[1745832727339,6.5904,151.69,151.67,6.5911]
[1745832728537,6.59,151.7,151.67,6.5911]
[1745832728736,25.3947,151.71,151.67,6.5911]
[1745832729238,6.5902,151.7,151.67,6.5911]
[1745832729838,6.5903,151.69,151.67,6.5911]
[1745832730437,6.5901,151.7,151.67,6.5911]
[1745832730739,25.3947,151.71,151.67,6.5911]
[1745832731138,6.5904,151.69,151.66,6.5913]
[1745832731438,25.3947,151.71,151.66,6.5913]
[1745832731639,6.5904,151.69,151.67,6.591]
[1745832733642,11.30186076,151.7,151.62,11.30186076]
[1745832733941,25.3947,151.71,151.62,11.30186076]
[1745832734138,6.5905,151.69,151.66,6.5912]
[1745832734340,25.3947,151.71,151.62,11.30186076]
[1745832734635,31.9843,151.71,151.68,6.5904]
[1745832735037,25.3947,151.71,151.68,6.5904]
[1745832735343,6.5899,151.7,151.67,6.5909]
[1745832736041,6.5899,151.7,151.68,6.5906]
[1745832736242,6.5899,151.7,151.64,11.30186076]
[1745832736445,6.5899,151.7,151.67,6.5909]
[1745832737244,31.9841,151.71,151.68,6.5906]
[1745832737545,25.3947,151.71,151.67,6.5909]
[1745832737842,6.59,151.7,151.65,23.38]
[1745832738143,31.9843,151.71,151.68,6.5906]
[1745832738340,25.3947,151.71,151.66,11.30186076]
[1745832738642,25.3832,151.74,151.66,11.30186076]
[1745832738843,6.5889,151.72,151.69,6.5898]
[1745832739142,23.38,151.74,151.66,11.30186076]
[1745832739340,1.956,151.75,151.7,11.30186076]
[1745832740042,8.544,151.75,151.71,6.5891]
[1745832740245,8.544,151.75,151.7,11.30186076]
[1745832740542,6.5884,151.74,151.7,6.5896]
[1745832740942,1.956,151.75,151.69,23.38]
[1745832741145,6.5888,151.73,151.69,29.9701]
[1745832741542,6.5888,151.73,151.69,23.38]
[1745832741744,6.5888,151.73,151.7,6.5898]
[1745832741943,6.5888,151.73,151.69,23.38]
[1745832742340,6.5888,151.73,151.69,29.97]
[1745832742842,6.589,151.72,151.69,29.97]
[1745832744646,13.25786076,151.75,151.66,34.68186076]
[1745832744839,1.956,151.75,151.66,34.68186076]
[1745832745039,1.956,151.75,151.68,11.30186076]
[1745832745239,6.5892,151.72,151.68,11.30186076]
[1745832745945,6.5894,151.71,151.69,6.5901]
[1745832747148,6.5891,151.72,151.69,6.5901]
[1745832747643,1.956,151.75,151.69,6.5901]
[1745832747851,6.5894,151.71,151.68,6.5905]
[1745832752352,6.5891,151.72,151.69,6.5901]
[1745832753151,6.5894,151.71,151.68,6.5905]
[1745832753749,6.5898,151.7,151.67,6.5909]
[1745832753947,6.5898,151.7,151.66,34.68186076]
[1745832754645,6.5895,151.71,151.66,34.68186076]
[1745832754846,11.30186076,151.71,151.63,23.38]
[1745832755251,6.5909,151.68,151.65,6.5919]
[1745832756952,3.9532,151.7,151.64,6.5922]
[1745832757551,6.5911,151.68,151.65,6.592]
[1745832757750,3.9532,151.7,151.65,6.592]
[1745832758253,6.5911,151.67,151.65,6.592]
[1745832758549,6.5911,151.67,151.64,6.5922]
[1745832759251,6.5911,151.67,151.65,6.592]
[1745832759752,6.5911,151.67,151.63,23.38]
[1745832759953,6.5911,151.67,151.64,6.5922]
[1745832760756,6.5916,151.66,151.63,29.9726]
[1745832761357,6.5913,151.67,151.64,6.592]
[1745832761657,6.5913,151.67,151.63,23.38]
[1745832761952,6.5908,151.68,151.63,23.38]
[1745832762558,6.5908,151.68,151.65,6.5917]
[1745832764458,41.27226076,151.69,151.63,23.38]
[1745832764758,29.9704,151.69,151.63,23.38]
[1745832765260,29.9704,151.69,151.66,6.5913]
[1745832765559,7.23196643,151.68,151.66,6.5913]
[1745832766159,13.82266643,151.68,151.66,6.5913]
[1745832766457,13.82266643,151.68,151.65,6.5918]
[1745832767156,6.5912,151.67,151.65,6.5918]
[1745832767456,7.23196643,151.66,151.61,7.23196643]
[1745832768058,13.82376643,151.66,151.61,7.23196643]
[1745832768457,7.23196643,151.66,151.61,7.23196643]
[1745832768757,7.23196643,151.66,151.64,6.5923]
[1745832769559,6.5914,151.67,151.64,6.5923]
[1745832769760,23.38,151.69,151.61,11.30330595]
[1745832770558,6.5909,151.68,151.61,11.30330595]
[1745832770759,23.38,151.69,151.61,11.30330595]
[1745832771259,6.5913,151.67,151.63,6.5925]
[1745832771658,6.5913,151.67,151.61,11.30330595]
[1745832772159,6.5913,151.67,151.6,23.38]
[1745832772361,11.30330595,151.66,151.6,23.38]
[1745832773159,6.5922,151.65,151.62,6.5933]
[1745832775760,29.9722,151.65,151.62,6.5933]
[1745832778761,6.5925,151.64,151.62,6.5933]
[1745832779063,6.5925,151.64,151.61,6.5935]
[1745832779665,6.5929,151.63,151.61,6.5935]
[1745832779864,11.30330595,151.64,151.54,13.19160595]
[1745832780163,11.30330595,151.64,151.56,11.30330595]
[1745832780365,5.9307,151.65,151.58,11.30330595]
[1745832780560,23.38,151.64,151.58,11.30330595]
[1745832780865,6.593,151.63,151.6,6.5939]
[1745832781763,6.5933,151.62,151.6,6.5939]
[1745832782465,6.593,151.63,151.6,6.5939]
[1745832782668,23.38,151.64,151.61,6.5936]
[1745832783065,6.5932,151.63,151.6,6.5939]
[1745832783868,29.9726,151.64,151.61,6.5936]
[1745832784470,6.5929,151.63,151.61,6.5936]
[1745832784666,23.38,151.64,151.58,11.30330595]
[1745832785165,6.5931,151.63,151.58,11.30330595]
[1745832785363,6.5931,151.63,151.6,6.5939]
[1745832785563,29.9726,151.64,151.58,11.30330595]
[1745832785973,29.9726,151.64,151.61,6.5936]
[1745832786274,29.9726,151.64,151.58,11.30330595]
[1745832786572,23.38,151.64,151.58,11.30330595]
[1745832787070,29.9726,151.64,151.58,11.30330595]
[1745832787570,23.38,151.64,151.58,11.30330595]
[1745832787773,6.5931,151.63,151.6,6.5939]
[1745832788073,34.68330595,151.64,151.57,23.38]
[1745832788272,6.5936,151.62,151.59,6.5946]
[1745832788973,34.68330595,151.64,151.58,6.5948]
[1745832789273,1.977,151.63,151.54,36.57160595]
[1745832789472,6.5935,151.62,151.59,6.5946]
[1745832789673,1.977,151.63,151.54,36.57160595]
[1745832789970,6.5951,151.58,151.55,6.5961]
[1745832790274,23.38,151.6,151.54,11.30330595]
[1745832790475,29.9742,151.6,151.54,11.30330595]
[1745832790967,29.9742,151.6,151.57,6.5952]
[1745832791173,23.38,151.6,151.54,11.30330595]
[1745832791373,23.38,151.6,151.57,6.5952]
[1745832791573,23.38,151.6,151.54,11.30330595]
[1745832791774,23.38,151.6,151.51,25.3799]
[1745832791775,23.38,151.62,151.56,11.30330595]
[1745832792876,29.9733,151.62,151.59,6.5943]
[1745832793177,23.38,151.62,151.56,11.30330595]
[1745832793677,6.5939,151.61,151.58,6.5948]
[1745832794070,6.5942,151.6,151.55,23.38]
[1745832794574,36.57820595,151.62,151.55,34.68330595]
[1745832794575,6.5939,151.61,151.55,34.68330595]
[1745832795272,31.8683,151.62,151.55,34.68330595]
[1745832795477,31.8683,151.62,151.57,11.30330595]
[1745832795776,6.5937,151.61,151.58,6.5948]
[1745832796374,25.2749,151.62,151.55,23.38]
[1745832796578,36.57820595,151.62,151.53,11.30330595]
[1745832796778,38.62240595,151.62,151.53,11.30330595]
[1745832796979,38.62240595,151.62,151.52,23.38]
[1745832796980,27.3191,151.62,151.57,11.30330595]
[1745832797475,33.9127,151.62,151.58,6.5948]
[1745832797778,33.9127,151.62,151.57,11.30330595]
[1745832798079,33.9127,151.62,151.58,6.5948]
[1745832798380,27.3191,151.62,151.57,11.30330595]
[1745832798680,23.38,151.65,151.62,6.5933]
[1745832798880,23.38,151.65,151.59,11.30330595]
[1745832799877,23.38,151.65,151.62,6.593]
[1745832800077,29.9722,151.65,151.62,6.593]
[1745832800979,29.9722,151.65,151.63,6.5928]
[1745832801580,23.38,151.65,151.63,6.5928]
[1745832802081,23.38,151.65,151.59,11.30330595]
[1745832802580,23.38,151.65,151.64,6.5924]
[1745832803480,23.38,151.65,151.63,6.5926]
[1745832803881,23.38,151.65,151.59,11.30330595]
[1745832804179,29.9721,151.65,151.62,6.593]
[1745832804574,23.38,151.65,151.59,11.30330595]
[1745832805881,6.5924,151.64,151.61,6.5935]
[1745832806293,23.38,151.65,151.57,1.9274]
[1745832806583,23.38,151.65,151.57,13.23070595]
[1745832806779,23.38,151.65,151.59,11.30330595]
[1745832807081,23.38,151.65,151.6,6.5939]
[1745832807583,6.5932,151.63,151.6,6.5939]
[1745832808878,23.38,151.65,151.59,6.5945]
[1745832809383,6.5934,151.62,151.59,6.5945]
[1745832809983,6.5937,151.61,151.58,6.595]
[1745832810588,6.5937,151.61,151.57,6.5953]
[1745832811185,6.5942,151.6,151.57,6.5953]
[1745832811582,23.38,151.61,151.57,6.5953]
[1745832811583,29.9739,151.61,151.57,6.5953]
[1745832814396,6.5942,151.6,151.57,6.5953]
[1745832814598,23.38,151.61,151.58,6.595]
[1745832815192,29.974,151.61,151.58,6.595]
[1745832815600,23.38,151.61,151.58,6.595]
[1745832816502,23.38,151.61,151.59,6.5946]
[1745832817295,5.7346,151.63,151.58,11.30330595]
[1745832817296,3.8289,151.63,151.58,11.30330595]
[1745832817502,2.0241,151.67,151.62,11.30330595]
[1745832818105,29.9709,151.68,151.62,11.30330595]
[1745832818592,4.0917,151.7,151.64,11.30330595]
[1745832818797,27.4717,151.7,151.66,11.30330595]
[1745832819201,23.38,151.7,151.69,6.5902]
[1745832819402,23.38,151.73,151.68,11.30330595]
[1745832819601,6.0161,151.75,151.7,11.30330595]
[1745832819801,3.9523,151.75,151.72,11.30330595]
[1745832820002,23.38,151.76,151.72,11.30330595]
[1745832820702,23.38,151.76,151.73,6.5884]
[1745832820902,503.9662,151.79,151.73,6.5884]
[1745832821209,6.5865,151.78,151.74,6.5881]
[1745832821604,503.9662,151.79,151.72,11.30330595]
[1745832822006,6.5866,151.78,151.72,11.30330595]
[1745832822606,6.5866,151.78,151.73,6.5882]
[1745832822907,6.5868,151.77,151.73,6.5882]
[1745832824504,6.5872,151.76,151.73,6.5882]
[1745832825209,6.5877,151.75,151.72,6.5888]
[1745832826211,6.5873,151.76,151.73,6.5885]
[1745832826412,6.5873,151.76,151.7,11.30330595]
[1745832826710,503.9662,151.79,151.7,11.30330595]
[1745832826909,503.9662,151.79,151.72,6.5887]
[1745832828510,6.5877,151.75,151.72,6.5887]
[1745832831018,6.5877,151.75,151.71,6.5892]
[1745832831516,11.30330595,151.76,151.69,6.59]
[1745832831718,11.30330595,151.74,151.65,11.30330595]
[1745832831919,11.30330595,151.72,151.65,6.5918]
[1745832832121,11.30330595,151.7,151.61,34.68330595]
[1745832832421,11.30330595,151.68,151.61,23.38]
[1745832832717,11.30330595,151.66,151.58,23.38]
[1745832833121,6.5926,151.64,151.6,6.594]
[1745832834920,6.5926,151.64,151.61,6.5935]
[1745832835123,29.9722,151.65,151.61,6.5935]
[1745832836922,29.9722,151.65,151.58,23.38]
[1745832836923,29.9722,151.65,151.62,6.5933]
[1745832839021,18.09078547,151.64,151.54,23.38]
[1745832839223,1.8756,151.63,151.54,23.38]
[1745832839523,1.8756,151.63,151.57,6.5952]
[1745832839524,6.5943,151.6,151.57,6.5952]
[1745832841928,29.9738,151.61,151.58,6.595]
[1745832842127,1.8756,151.63,151.54,41.47078547]
[1745832842327,2.0247,151.64,151.61,6.5934]
[1745832842823,2.0247,151.64,151.58,23.38]
[1745832843124,2.0247,151.64,151.63,6.5928]
[1745832843328,27.358,151.68,151.6,18.09078547]
[1745832843628,1.9658,151.69,151.6,18.09078547]
[1745832844622,1.9658,151.69,151.66,6.5913]
[1745832844822,29.9701,151.7,151.66,6.5913]
[1745832845023,6.5903,151.69,151.62,23.38]
[1745832845331,23.38,151.7,151.63,18.09078547]
[1745832845525,23.38,151.73,151.63,18.09078547]
[1745832845827,23.38,151.73,151.68,6.5904]
[1745832846126,6.5893,151.72,151.68,6.5904]
[1745832847428,23.38,151.73,151.66,23.38]
[1745832847628,41.47078547,151.73,151.63,23.38]
[1745832848023,6.591,151.68,151.64,6.5922]
[1745832848228,41.47078547,151.73,151.63,23.38]
[1745832848432,18.09078547,151.7,151.63,23.38]
[1745832848725,23.38,151.69,151.62,6.5929]
[1745832848928,23.38,151.69,151.6,41.47078547]
[1745832849125,1.8799,151.68,151.6,41.47078547]
[1745832849322,6.5918,151.66,151.63,6.5928]
[1745832849830,6.5918,151.66,151.62,6.5931]
[1745832851335,6.592,151.65,151.62,6.5931]
[1745832851830,1.8799,151.68,151.6,23.38]
[1745832852032,1.8745,151.67,151.6,23.38]
[1745832852221,6.5927,151.64,151.6,29.9738]
[1745832853329,6.5927,151.64,151.61,6.5937]
[1745832853727,6.5922,151.65,151.61,6.5937]
[1745832855339,1.8745,151.67,151.6,23.38]
[1745832855735,6.5922,151.65,151.61,6.5935]
[1745832855928,1.8745,151.67,151.6,23.38]
[1745832856324,1.8745,151.67,151.62,6.5929]
[1745832856325,6.5918,151.66,151.62,6.5929]
[1745832856530,1.8745,151.67,151.6,23.38]
[1745832857529,1.8799,151.68,151.6,41.47078547]
[1745832858337,8.4709,151.68,151.64,6.5922]
[1745832858636,1.8799,151.68,151.64,6.5922]
[1745832859736,8.4708,151.68,151.64,6.5922]
[1745832861135,8.4708,151.68,151.65,6.5919]
[1745832861530,6.5904,151.69,151.65,6.5919]
[1745832861732,23.38,151.7,151.66,6.5914]
[1745832862335,6.5903,151.69,151.66,6.5914]
[1745832862635,23.38,151.7,151.63,18.09078547]
[1745832862836,23.38,151.7,151.64,23.38]
[1745832863137,23.38,151.7,151.67,6.5907]
[1745832863828,23.38,151.7,151.68,6.5905]
[1745832864028,8.4796,151.72,151.64,23.38]
[1745832864638,6.5894,151.71,151.64,23.38]
[1745832864836,6.5894,151.71,151.67,6.5908]
[1745832866441,1.8907,151.72,151.66,6.5914]
[1745832867242,6.5903,151.69,151.66,6.5914]
[1745832867743,6.5903,151.69,151.64,23.38]
[1745832867744,1.8907,151.72,151.64,23.38]
[1745832868238,29.9687,151.73,151.7,6.5895]
[1745832868439,23.38,151.73,151.65,18.09078547]
[1745832868940,6.5894,151.71,151.65,18.09078547]
[1745832869242,6.5894,151.71,151.68,6.5906]
[1745832869443,23.38,151.73,151.65,18.09078547]
[1745832869942,6.5892,151.72,151.65,18.09078547]
[1745832871341,6.5892,151.72,151.69,6.59]
[1745832871542,29.9687,151.73,151.69,6.59]
[1745832871840,29.9687,151.73,151.65,18.09078547]
[1745832872232,29.9687,151.73,151.7,6.5897]
[1745832872439,6.589,151.72,151.65,18.09078547]
[1745832872944,6.589,151.72,151.69,6.5901]
[1745832873134,29.9686,151.73,151.65,18.09078547]
[1745832873339,23.38,151.73,151.65,18.09078547]
[1745832873636,23.38,151.73,151.7,6.5894]
[1745832873835,29.9685,151.73,151.7,6.5894]
[1745832876245,23.38,151.73,151.67,11.29066981]
[1745832876440,476.5526,151.76,151.68,23.62]
[1745832876441,500.1726,151.76,151.68,23.62]
[1745832876645,23.62,151.76,151.69,11.29066981]
[1745832877049,23.62,151.76,151.73,6.5881]
[1745832877545,6.5872,151.76,151.73,6.5881]
[1745832878648,6.5876,151.75,151.72,6.5888]
[1745832879247,13.35276981,151.77,151.71,6.5893]
[1745832879842,6.5879,151.75,151.72,6.5889]
[1745832880049,13.35276981,151.77,151.69,11.29066981]
[1745832880938,6.588,151.75,151.71,6.5892]
[1745832881146,6.588,151.75,151.69,11.29066981]
[1745832881446,6.588,151.75,151.72,6.5887]
[1745832881949,6.5874,151.76,151.69,11.29066981]
[1745832882247,2.0621,151.77,151.73,6.5883]
[1745832882447,6.5883,151.74,151.68,23.62]
[1745832882739,6.5883,151.74,151.68,34.91066981]
[1745832883450,6.5883,151.74,151.71,6.5894]
[1745832883745,6.5885,151.73,151.71,6.5894]
[1745832884148,6.5885,151.73,151.7,6.5896]
[1745832884545,6.589,151.72,151.7,6.5896]
[1745832884745,6.589,151.72,151.69,6.59]
[1745832885749,6.5887,151.73,151.7,6.5898]
[1745832886049,11.29066981,151.75,151.68,23.62]
[1745832886347,6.5883,151.74,151.71,6.5893]
[1745832886545,2.0621,151.77,151.7,11.29066981]
[1745832886747,6.5874,151.76,151.73,6.5883]
[1745832886946,13.35276981,151.77,151.68,34.91066981]
[1745832887248,6.5883,151.74,151.71,6.5891]
[1745832887750,6.5885,151.73,151.71,6.5891]
[1745832888050,6.5885,151.73,151.7,6.5896]
[1745832888751,23.62,151.74,151.69,6.5902]
[1745832888952,11.29066981,151.75,151.68,23.62]
[1745832889150,23.62,151.74,151.66,11.29066981]
[1745832889352,30.2084,151.74,151.66,11.29066981]
[1745832889650,23.62,151.74,151.66,11.29066981]
[1745832890150,6.5887,151.73,151.66,11.29066981]
[1745832890352,23.62,151.74,151.66,11.29066981]
[1745832890554,23.62,151.74,151.68,6.5905]
[1745832890950,11.29066981,151.73,151.65,23.62]
[1745832891248,17.87946981,151.73,151.65,23.62]
[1745832891448,6.5888,151.73,151.66,11.29066981]
[1745832891852,6.5888,151.73,151.69,6.59]
[1745832892255,6.5888,151.73,151.66,11.29066981]
[1745832894157,11.29066981,151.73,151.65,23.62]
[1745832894453,11.29066981,151.71,151.65,23.62]
[1745832894661,11.29066981,151.69,151.62,23.62]
[1745832894850,25.5457,151.7,151.62,34.91066981]
[1745832895850,25.5457,151.7,151.67,6.5908]
[1745832896351,32.1357,151.7,151.67,6.5908]
[1745832897852,25.5457,151.7,151.64,11.29066981]
[1745832898655,25.5457,151.7,151.68,6.5904]
[1745832898954,1.9257,151.7,151.68,6.5904]
[1745832900058,1.9257,151.7,151.69,6.5902]
[1745832900257,1.8788,151.72,151.66,11.29066981]
[1745832900554,1.8788,151.72,151.66,34.89066981]
[1745832901356,6.5894,151.71,151.68,6.5905]
[1745832901658,6.5894,151.71,151.66,34.89066981]
[1745832902160,6.5894,151.71,151.69,6.5902]
[1745832903161,8.468,151.72,151.69,6.5902]
[1745832903759,1.8788,151.72,151.7,6.5897]
[1745832903956,1.8788,151.72,151.66,34.89066981]
[1745832904456,1.8788,151.72,151.66,23.6]
[1745832904757,11.29066981,151.71,151.63,23.6]
[1745832904952,6.5908,151.68,151.65,6.5917]
[1745832905157,11.29066981,151.69,151.63,23.6]
[1745832905458,6.5909,151.68,151.65,6.592]
[1745832907561,6.5911,151.67,151.64,6.5923]
[1745832907856,1.9227,151.68,151.63,23.6]
[1745832908452,1.9227,151.68,151.6,23.6]
[1745832908658,6.5916,151.66,151.63,6.5926]
[1745832911664,6.5916,151.66,151.64,6.5924]
[1745832912464,17.88196981,151.67,151.64,6.5924]
[1745832912658,6.5913,151.67,151.64,6.5924]
[1745832912968,6.5913,151.67,151.65,6.5919]
[1745832913167,10.4952,151.68,151.6,34.89066981]
[1745832913461,1.9227,151.68,151.62,11.29066981]
[1745832913656,1.8788,151.72,151.66,11.29066981]
[1745832914269,8.4679,151.72,151.69,6.5902]
[1745832915272,8.4679,151.72,151.7,6.5897]
[1745832918064,1.8788,151.72,151.7,6.5897]
[1745832918270,1.8788,151.72,151.71,6.5894]
[1745832919068,6.5897,151.71,151.65,23.6]
[1745832919370,13.16946981,151.72,151.65,23.6]
[1745832919671,19.75856981,151.72,151.69,6.5901]
[1745832920372,6.5894,151.71,151.69,6.5901]
[1745832920965,6.5894,151.71,151.65,23.6]
[1745832921267,19.75856981,151.72,151.65,23.6]
[1745832921870,8.4679,151.72,151.65,23.6]
[1745832922173,8.4679,151.72,151.69,6.5899]
[1745832923274,6.5894,151.71,151.69,6.5899]
[1745832923473,1.8788,151.72,151.69,6.5899]
[1745832923875,8.468,151.72,151.69,6.5899]
[1745832924969,1.8788,151.72,151.7,6.5898]
[1745832925176,23.6,151.74,151.66,11.29066981]
[1745832925475,23.6,151.74,151.68,11.29066981]
[1745832926475,23.6,151.74,151.72,6.5889]
[1745832926776,23.6,151.74,151.68,11.29066981]
[1745832927074,23.6,151.74,151.71,6.5892]
[1745832927276,6.5881,151.74,151.71,6.5892]
[1745832927478,11.29066981,151.76,151.71,6.5892]
[1745832928377,6.5881,151.74,151.71,6.5892]
[1745832930777,6.5881,151.74,151.72,6.5889]
[1745832931077,6.5877,151.75,151.68,11.29066981]
[1745832931375,6.5877,151.75,151.72,6.5887]
[1745832934080,6.5882,151.74,151.72,6.5887]
[1745832934677,6.5878,151.75,151.72,6.5887]
[1745832936273,6.5878,151.75,151.73,6.5883]
[1745832938684,6.5878,151.75,151.69,23.46]
[1745832938685,6.5882,151.74,151.72,6.5887]
[1745832939275,6.5887,151.73,151.69,23.46]
[1745832939781,6.5887,151.73,151.7,6.5897]
[1745832940280,6.5887,151.73,151.69,23.46]
[1745832941081,6.5883,151.74,151.71,6.5892]
[1745832941380,23.6,151.77,151.69,23.46]
[1745832942283,6.5879,151.75,151.72,6.5888]
[1745832943582,6.5882,151.74,151.71,6.5891]
[1745832943782,6.5882,151.74,151.69,23.46]
[1745832944482,6.5882,151.74,151.71,6.589]
[1745832944983,6.5886,151.73,151.71,6.589]
[1745832945483,6.5886,151.73,151.7,6.5896]
[1745832945685,6.5886,151.73,151.69,23.46]
[1745832945877,6.5883,151.74,151.69,23.46]
[1745832946180,6.5883,151.74,151.71,6.5892]
[1745832947183,11.29066981,151.76,151.71,6.5892]
[1745832947383,11.29066981,151.76,151.69,23.46]
[1745832947684,6.5878,151.75,151.69,23.46]
[1745832947886,6.5878,151.75,151.72,6.5886]
[1745832948384,6.5874,151.76,151.74,6.588]
[1745832948687,23.6,151.77,151.7,11.29066981]
[1745832949183,6.5874,151.76,151.73,6.5885]
[1745832949484,23.6,151.77,151.73,6.5885]
[1745832949679,6.5874,151.76,151.73,6.5885]
[1745832951486,6.5874,151.76,151.74,6.588]
[1745832952283,6.5874,151.76,151.73,6.5884]
[1745832952684,6.5877,151.75,151.73,6.5884]